fUST/lending_fUST_20260407
["ID","MTS","AMOUNT","RATE_DAILY","PERIOD"]
[419924871,1775511046844,-1000.0,0.00013699,2]
[419924873,1775511046853,-154.0,0.00017919,2]
[419924875,1775511046863,-154.03,0.0001945,2]
[419924877,1775511046874,-181.3845844,0.00020532,2]
[419924879,1775511046883,-154.0,0.00022,2]
[419924881,1775511046893,-159.0,0.00022,2]
[419924883,1775511046902,-231.0,0.00022,2]
[419924885,1775511046911,-8766.27880851,0.00022026,2]
[419924887,1775511046920,-2585.25262106,0.00022026,2]
[419924889,1775511046929,-807.92936742,0.00022061,5]
[419924891,1775511046939,-1888.06619117,0.00022161,6]
[419924893,1775511046948,-600.0,0.00022355,10]
[419924895,1775511046957,-2968.20301492,0.00022361,8]
[419924897,1775511046967,-4048.33983867,0.00022561,9]
[419924899,1775511046976,-449.69304486,0.000226,10]
[419924901,1775511046985,-339.61807273,0.00022689,2]
[419924903,1775511046994,-500.0,0.00022779,2]
[419924905,1775511047003,-579.84144298,0.00022779,2]
[419924907,1775511047012,-499.79333429,0.00022779,2]
[419924909,1775511047021,-500.0,0.00022779,2]
[419924911,1775511047031,-500.0,0.00022779,2]
[419924913,1775511047040,-500.0,0.00022779,2]
[419924915,1775511047049,-459.60725513,0.00022779,2]
[419924917,1775511047058,-218.71076712,0.0002278,2]
[419924919,1775511047067,-500.0,0.0002278,2]
[419924921,1775511047075,-500.0,0.0002278,2]
[419924923,1775511047084,-500.0,0.0002278,2]
[419924925,1775511047093,-524.18395557,0.0002278,2]
[419924927,1775511047103,-500.0,0.0002278,2]
[419924929,1775511047111,-280.2699029,0.0002278,2]
[419924931,1775511047120,-500.0,0.0002278,2]
[419924933,1775511047129,-500.0,0.0002278,2]
[419924935,1775511047139,-500.0,0.0002278,2]
[419924937,1775511047148,-500.0,0.0002278,2]
[419924939,1775511047157,-500.0,0.0002278,2]
[419924941,1775511047166,-500.0,0.0002278,2]
[419924943,1775511047175,-200.0,0.00022781,2]
[419924945,1775511047184,-11801.891832,0.00022781,2]
[419925476,1775511061640,-919.24021952,0.00011205,2]
[419925578,1775511806480,5000.0,0.0001001,2]
[419925579,1775511814457,5000.0,0.0001001,2]
[419925580,1775511822548,5000.0,0.0001001,2]
[419925582,1775511837363,5000.0,0.0001001,2]
[419925583,1775511845087,5000.0,0.0001001,2]
[419925584,1775511860930,5000.0,0.0001001,2]
[419925585,1775511868632,1011.93797688,0.0001001,2]
[419925586,1775511883359,5000.0,0.0001001,2]
[419925587,1775511905204,5000.0,0.0001001,2]
[419925588,1775511927696,5000.0,0.0001001,2]
[419925600,1775511949951,5000.0,0.0001001,2]
[419925601,1775511971838,5000.0,0.0001001,2]
[419925675,1775512232652,-5000.0,0.00010781,2]
[419925677,1775512232664,-1625.0,0.0001079,2]
[419925680,1775512232675,-183.29,0.000111,2]
[419925682,1775512232686,-1000.0,0.00013699,2]
[419925684,1775512232698,-1000.0,0.00018088,2]
[419925686,1775512232709,-167.607993,0.00018661,2]
[419925688,1775512232719,-759.6996623,0.00018837,2]
[419925691,1775512232731,-372.1522117,0.00018837,2]
[419925693,1775512232742,-4272.98260126,0.00018837,2]
[419925695,1775512232755,-517.75085583,0.00018837,2]
[419925698,1775512232768,-445.41334291,0.00018837,2]
[419925700,1775512232779,-161.78019819,0.00019606,2]
[419925702,1775512232790,-175.863664,0.00021017,2]
[419925704,1775512232801,-372.1522117,0.00021249,2]
[419925706,1775512232812,-225.35500194,0.00021316,2]
[419925721,1775512232941,-497.48215958,0.00021316,2]
[419925830,1775512239500,-36.86250078,0.00021316,2]
[419925832,1775512239509,-159.0,0.00022,2]
[419925834,1775512239518,-220.0,0.00022,2]
[419925836,1775512239527,-202.11088653,0.00022062,2]
[419925838,1775512239536,-175.863664,0.00022123,2]
[419925840,1775512239546,-198.74587281,0.00022379,2]
[419925842,1775512239555,-198.74587281,0.0002238,2]
[419925844,1775512239563,-9415.67120362,0.0002238,2]
[419925846,1775512239575,-23248.16929666,0.0002238,2]
[419926055,1775512241573,-2685.40494975,0.0002238,2]
[419926261,1775512243841,-8290.03336928,0.0002238,2]
[419926578,1775512246939,-132148.63828418,0.0002238,2]
[419926580,1775512246949,-198.74587281,0.0002238,2]
[419926582,1775512246958,-500.0,0.00022473,2]
[419926584,1775512246967,-160.83633145,0.00022473,2]
[419926586,1775512246976,-309.67444645,0.00022473,2]
[419926588,1775512246987,-273.28969502,0.00022479,2]
[419926590,1775512246996,-11592.09369724,0.0002248,2]
[419926592,1775512247005,-1079.26342506,0.0002248,2]
[419927416,1775512861796,-5000.0,0.00013426,2]
[419927417,1775512861824,-613.0,0.00013562,2]
[419927418,1775512861871,-381.0,0.00013699,2]
[419927419,1775512891065,-1000.0,0.00013699,2]
[419927420,1775512891104,-615.0,0.00013699,2]
[419927422,1775512945730,-3998.0,0.00020783,2]
[419927423,1775512975192,-613.0,0.00020783,2]
[419927424,1775512975214,-389.0,0.00020783,2]
[419927425,1775513004328,-613.0,0.00020783,2]
[419927426,1775513128967,300.0,0.00032876,120]
[419927427,1775513138354,5009.37,0.00032877,120]
[419927491,1775513378870,1816.48,0.00031923,120]
[419927493,1775513384513,300.0,0.00032876,120]
[419927495,1775513405699,419.91550361,0.0001,2]
[419927498,1775513411892,1798.05994435,0.0001,2]
[419927507,1775513431748,-1000.0,0.00013699,2]
[419927508,1775513431758,-605.92221814,0.00013699,2]
[419927510,1775513431770,-9.07778186,0.00013699,2]
[419927512,1775513431779,-432.28336013,0.000169,2]
[419927513,1775513431853,-283.624,0.000169,2]
[419927530,1775513438046,-1152.13198563,0.000169,2]
[419927531,1775513438211,-431.87462275,0.000169,2]
[419927532,1775513438223,-40156.53468594,0.000169,2]
[419927533,1775513438232,-197.50907423,0.0001958,2]
[419927534,1775513438242,-158.695771,0.00020993,2]
[419927535,1775513438251,-451.37524698,0.00021,2]
[419927536,1775513438260,-1129.67728,0.00021219,2]
[419927537,1775513438270,-744.3044234,0.00021543,2]
[419927538,1775513438279,-1519.3993247,0.00021631,2]
[419927539,1775513438288,-246.96,0.000217,2]
[419927540,1775513438297,-779.5029865,0.00021855,2]
[419927541,1775513438306,-3117.2530422,0.00021855,2]
[419927542,1775513438315,-40117.06078322,0.000219,2]
[419927543,1775513438324,-1552.68888818,0.000219,2]
[419927544,1775513438333,-153.0,0.00022,2]
[419927545,1775513438343,-167.0,0.00022,2]
[419927546,1775513438352,-240.0,0.00022,2]
[419927547,1775513438361,-159.0,0.00022,2]
[419927548,1775513438371,-153.0,0.00022,2]
[419927549,1775513438380,-2205.0,0.00022263,2]
[419927550,1775513438389,-644.0,0.00022263,2]
[419927551,1775513438398,-1473.953,0.00022263,2]
[419927552,1775513438407,-503.70671462,0.00022273,2]
[419927553,1775513438417,-500.0,0.00022273,2]
[419927554,1775513438426,-500.0,0.00022273,2]
[419927555,1775513438435,-500.0,0.00022273,2]
[419927556,1775513438445,-505.75388942,0.00022273,2]
[419927557,1775513438454,-503.18719472,0.00022273,2]
[419927558,1775513438465,-220.0484867,0.00022273,2]
[419927559,1775513438475,-520.51524112,0.00022273,2]
[419927560,1775513438484,-299.37894711,0.00022278,2]
[419927561,1775513438493,-500.0,0.00022278,2]
[419927562,1775513438502,-308.35432438,0.00022278,2]
[419927563,1775513438512,-500.0,0.00022278,2]
[419927564,1775513438521,-500.0,0.00022278,2]
[419927565,1775513438530,-500.0,0.00022278,2]
[419927566,1775513438539,-500.0,0.00022278,2]
[419927567,1775513438548,-500.0,0.00022278,2]
[419927569,1775513438557,-550.1995072,0.00022278,2]
[419927570,1775513438567,-500.0,0.00022278,2]
[419927572,1775513438576,-500.0,0.00022278,2]
[419927574,1775513438584,-36486.58461185,0.00022279,2]
[419927761,1775513440825,-863.49330725,0.00022279,2]
[419928416,1775513448991,-500.0,0.00022278,2]
[419928418,1775513449001,-450.0,0.00022278,2]
[419928420,1775513449011,-11623.61627025,0.00022279,2]
[419928422,1775513449022,-2700.0000006,0.00022279,2]
[419929101,1775513611172,300.0,0.00032876,120]
[419929102,1775513888315,300.0,0.00032876,120]
[419929103,1775514095060,227.06,0.00031928,120]
[419929104,1775514104965,300.0,0.00032876,120]
[419929113,1775514353743,300.0,0.00032876,120]
[419929138,1775514587361,300.0,0.00032876,120]
[419929149,1775514631945,-1000.0,0.00013699,2]
[419929151,1775514631956,-580.26245559,0.00013699,2]
[419929157,1775514632051,-34.73754441,0.00013699,2]
[419929158,1775514632061,-282.3,0.000137,2]
[419929159,1775514632071,-151.0,0.00014795,2]
[419929160,1775514632080,-791.35280208,0.00020298,2]
[419929161,1775514632089,-3162.24579713,0.00020298,2]
[419929162,1775514632099,-472.15538955,0.00020298,2]
[419929163,1775514632108,-60.08886601,0.00020298,2]
[419929185,1775514638177,-428.47,0.00020298,2]
[419929186,1775514638233,-1398.17407062,0.00020298,2]
[419929187,1775514638243,-266.038,0.00021266,2]
[419929188,1775514638252,-185.844,0.00021266,2]
[419929189,1775514638261,-1358.60277714,0.00021499,2]
[419929190,1775514638270,-49022.95238655,0.000215,2]
[419929442,1775514643202,-402.68378383,0.000215,2]
[419929444,1775514643213,-642.99355765,0.000215,2]
[419929446,1775514643224,-585.97660249,0.000215,2]
[419929448,1775514643235,-7374.82932665,0.000215,2]
[419929451,1775514643247,-124083.77758493,0.000215,2]
[419929453,1775514643258,-42872.34526459,0.000215,2]
[419929455,1775514643272,-587.80325138,0.000215,2]
[419929771,1775514646373,-4229.78339546,0.000215,2]
[419929772,1775514646482,-2423.1256761,0.000215,2]
[419929773,1775514646493,-8956.29472078,0.000215,2]
[419929774,1775514646539,-31113.44985061,0.000215,2]
[419929775,1775514646551,-637.00774766,0.000215,2]
[419930871,1775514817406,300.0,0.00032876,120]
[419930872,1775514902365,1500.0,0.00032877,120]
[419930873,1775515055532,300.0,0.00032876,120]
[419930874,1775515066073,1421.42980735,0.00032876,120]
[419930876,1775515229269,2881.4,0.00032877,120]
[419930877,1775515274014,9758.9,0.00032877,120]
[419930879,1775515296244,300.0,0.00032876,120]
[419930881,1775515536458,1000.0,0.00032877,120]
[419930882,1775515542601,300.0,0.00032876,120]
[419930883,1775515547681,1000.0,0.00032877,120]
[419931025,1775515832499,-346.44,0.00013699,2]
[419931026,1775515832510,-653.56,0.00013699,2]
[419931027,1775515832519,-23.70267608,0.00013699,2]
[419931028,1775515832534,-305.668248,0.00013699,2]
[419931029,1775515832545,-285.62907592,0.00013699,2]
[419931030,1775515832554,-194.81819034,0.0002,2]
[419931031,1775515832564,-1096.688466,0.00020385,2]
[419931032,1775515832573,-2506.1842375,0.00020408,2]
[419931033,1775515832582,-156.0,0.0002055,2]
[419931034,1775515832591,-158.695771,0.00020791,2]
[419931035,1775515832600,-212.83,0.00020971,2]
[419931036,1775515832609,-389.15425924,0.000212,2]
[419931037,1775515832621,-799.62317081,0.000212,2]
[419931038,1775515832630,-649.08,0.00021288,10]
[419931039,1775515832639,-7819.97422725,0.00021297,2]
[419931040,1775515832650,-25863.07123439,0.00021297,2]
[419931041,1775515832659,-3933.13684001,0.00021298,2]
[419931042,1775515832670,-665.05160848,0.00021298,2]
[419931062,1775515838358,-147212.7305119,0.00021298,2]
[419931063,1775515838367,-200.0,0.00021298,2]
[419931064,1775515838377,-230096.91946252,0.00021299,2]
[419931065,1775515838387,-984292.97047373,0.00021299,2]
[419931066,1775515838463,-28999.94273968,0.00021299,2]
[419931067,1775515838474,-2537.0,0.00021299,2]
[419931162,1775515841144,-814.419644,0.00021299,2]
[419931209,1775515841579,4434.23100729,0.00030889,120]
[419931719,1775515846517,-3599.4362149,0.00021299,2]
[419931898,1775516003011,300.0,0.00032876,120]
[419931899,1775516141177,3769.0963562,0.00030849,120]
[419931900,1775516216706,3800.0,0.00032876,120]
[419931901,1775516252875,300.0,0.00032876,120]
[419931902,1775516441852,3203.73190277,0.00030874,120]
[419931903,1775516480945,-923.51785024,0.00013699,2]
[419931904,1775516480957,-76.48214976,0.00013699,2]
[419931905,1775516480967,-615.0,0.00013699,2]
[419931906,1775516529106,-127.80486377,0.00017871,2]
[419931907,1775516534737,300.0,0.00032876,120]
[419931908,1775516741274,2723.17211735,0.0003087,120]
[419931912,1775516755984,7000.0,0.00015,120]
[419931913,1775516776497,300.0,0.00032876,120]
[419931914,1775516778595,570.29,0.00032877,120]
[419931921,1775516976595,303.53632921,0.0001,2]
[419931922,1775516996452,300.0,0.00032876,120]
[419931980,1775517040816,-1206.6,0.00013426,2]
[419931982,1775517040828,-1323.37516,0.00013426,2]
[419931983,1775517040840,-1057.95,0.00013426,2]
[419931984,1775517040853,-1034.33492736,0.00013426,2]
[419931986,1775517040871,-377.73991264,0.00013426,2]
[419931988,1775517040880,-1000.0,0.00013699,2]
[419931989,1775517040890,-33.09100385,0.00016,7]
[419931990,1775517040903,-345.255,0.00016,7]
[419931991,1775517040915,-2719.4386483,0.00016,7]
[419932043,1775517041419,-199.24457592,0.00016,7]
[419932045,1775517041429,-1204.66345363,0.000169,2]
[419932047,1775517041439,-150.3521184,0.000198,2]
[419932049,1775517041449,-1846.56193458,0.00020978,2]
[419932051,1775517041460,-1231.59202484,0.00021,2]
[419932053,1775517041470,-3082.81581445,0.00021,2]
[419932055,1775517041480,-3087.89300902,0.00021,2]
[419932057,1775517041490,-276.0,0.00021028,2]
[419932059,1775517041500,-4586.63,0.00021068,3]
[419932061,1775517041509,-2737.77,0.00021068,3]
[419932063,1775517041519,-1368.88,0.00021068,3]
[419932064,1775517041528,-348.54031182,0.00021076,2]
[419932065,1775517041537,-410.72727668,0.00021076,2]
[419932066,1775517041551,-89.27272332,0.00021076,2]
[419932067,1775517041561,-500.0,0.00021076,2]
[419932068,1775517041571,-500.0,0.00021076,2]
[419932069,1775517041580,-500.0,0.00021076,2]
[419932070,1775517041590,-156.49610456,0.00021076,2]
[419932071,1775517041602,-343.50389544,0.00021076,2]
[419932072,1775517041612,-212.39110545,0.00021076,2]
[419932073,1775517041621,-500.0,0.00021076,2]
[419932074,1775517041631,-500.0,0.00021076,2]
[419932075,1775517041641,-500.0,0.00021076,2]
[419932076,1775517041650,-525.0,0.00021076,2]
[419932077,1775517041659,-500.0,0.00021076,2]
[419932078,1775517041669,-500.0,0.00021076,2]
[419932079,1775517041679,-24164.18723434,0.00021077,2]
[419932080,1775517041691,-25835.81276566,0.00021077,2]
[419932081,1775517041700,-500.0,0.00021077,2]
[419932082,1775517041710,-427.32198354,0.00021077,2]
[419932083,1775517041720,-500.0,0.00021077,2]
[419932084,1775517041730,-500.0,0.00021077,2]
[419932085,1775517041739,-500.0,0.00021077,2]
[419932086,1775517041749,-500.0,0.00021077,2]
[419932087,1775517041758,-500.0,0.00021077,2]
[419932088,1775517041769,-500.0,0.00021077,2]
[419932089,1775517041778,-500.0,0.00021077,2]
[419932090,1775517041788,-500.0,0.00021077,2]
[419932091,1775517041798,-500.0,0.00021077,2]
[419932092,1775517041807,-546.85567282,0.00021077,2]
[419932093,1775517041817,-580.59072303,0.00021077,2]
[419932094,1775517041826,-1700000.0,0.00021078,2]
[419932095,1775517041836,-194359.12994789,0.00021078,2]
[419932096,1775517041848,-1322.61187385,0.00021078,2]
[419932097,1775517041861,-453.0,0.00021078,2]
[419932098,1775517041872,-2000.0,0.00021078,2]
[419932099,1775517041901,-896.28489216,0.00021078,2]
[419932101,1775517041933,2314.69629975,0.00031173,120]
[419932280,1775517049994,-684.44,0.00021068,3]
[419932281,1775517050005,-2750.46798871,0.00021078,2]
[419932282,1775517050016,-1166.157,0.00021078,2]
[419932303,1775517128807,12782.93499506,0.00032876,120]
[419932304,1775517234273,300.0,0.00032876,120]
[419932305,1775517341309,1967.49185479,0.00031326,120]
[419932306,1775517470087,300.0,0.00032876,120]
[419932307,1775517635079,51025.98,0.00032877,120]
[419932308,1775517644362,1672.36807657,0.00031324,120]
[419932309,1775517700314,300.0,0.00032876,120]
[419932310,1775517941379,1421.51286508,0.00031672,120]
[419932311,1775517966259,300.0,0.00032876,120]
[419932312,1775517968674,1000.0,0.00032877,120]
[419932313,1775518063283,4151.73,0.00032,120]
[419932314,1775518173305,300.0,0.00032876,120]
[419932340,1775518232432,-1000.0,0.00013699,2]
[419932342,1775518232441,-196.2312158,0.00013699,2]
[419932344,1775518232453,-418.7687842,0.00013699,2]
[419932346,1775518232462,-897.7312158,0.00019856,2]
[419932347,1775518232473,-1046.6,0.00019856,2]
[419932353,1775518232696,-673.65800602,0.00019856,2]
[419932354,1775518232708,-4641.14141997,0.00019856,2]
[419932377,1775518241399,-1666.4134488,0.00019856,2]
[419932378,1775518241509,-1074.45590941,0.00019856,2]
[419932380,1775518241519,-1000.0,0.00019945,2]
[419932382,1775518241528,-942.857918,0.00019961,2]
[419932384,1775518241538,-575.9482896,0.00019961,2]
[419932387,1775518241548,-1615.74169281,0.00020775,2]
[419932388,1775518241558,-769.81791632,0.000208,2]
[419932389,1775518241567,-155.58330965,0.00020848,5]
[419932390,1775518241576,-3557.02,0.00020866,3]
[419932391,1775518241585,-670.72,0.00020866,10]
[419932392,1775518241595,-1778.51,0.00020866,3]
[419932393,1775518241604,-4019.71748022,0.00020867,2]
[419932394,1775518241613,-475.0,0.00020873,2]
[419932395,1775518241622,-500.0,0.00020873,2]
[419932396,1775518241632,-370.80779017,0.00020873,2]
[419932397,1775518241641,-50000.0,0.00020874,2]
[419932398,1775518241650,-500.0,0.00020875,2]
[419932399,1775518241659,-500.0,0.00020875,2]
[419932400,1775518241669,-500.0,0.00020875,2]
[419932401,1775518241679,-500.0,0.00020875,2]
[419932402,1775518241688,-500.0,0.00020875,2]
[419932403,1775518241697,-500.0,0.00020875,2]
[419932404,1775518241707,-500.0,0.00020875,2]
[419932405,1775518241716,-500.0,0.00020875,2]
[419932406,1775518241725,-255.44996778,0.00020875,2]
[419932407,1775518241734,-500.0,0.00020875,2]
[419932408,1775518241743,-244.66043723,0.00020875,2]
[419932409,1775518241752,-500.0,0.00020875,2]
[419932410,1775518241762,-500.0,0.00020875,2]
[419932411,1775518241776,-500.0,0.00020875,2]
[419932412,1775518241786,-59300.55825921,0.00020876,2]
[419932413,1775518242288,1208.28593532,0.0003168,120]
[419932414,1775518242366,-478.73865039,0.00020876,2]
[419932415,1775518242378,-587.0,0.00020876,2]
[419932469,1775518243813,-30002.86597121,0.00020876,2]
[419932470,1775518243825,-798.23978973,0.00020876,2]
[419932471,1775518243836,-300.0,0.00020876,2]
[419932474,1775518243848,-3391.27069464,0.00020876,2]
[419932476,1775518243859,-1540.817128,0.00020876,2]
[419932478,1775518243871,-1891.0220345,0.00020876,2]
[419932485,1775518246818,-9523.08965803,0.00020876,2]
[419932486,1775518246861,-10219.12862401,0.00020876,2]
[419932487,1775518246873,-1843.15095263,0.00020876,2]
[419932488,1775518246886,-7945.7986602,0.00020876,2]
[419932489,1775518247036,-4215.9999828,0.00020876,2]
[419932490,1775518326000,1000.0,0.00013699,2]
[419932491,1775518441412,300.0,0.00032876,120]
[419932492,1775518541294,1027.04304502,0.0003168,120]
[419932497,1775518841556,872.98658827,0.00031499,120]
[419932498,1775519141276,742.03860003,0.00031499,120]
[419932501,1775519312728,-27.32080192,0.00034917,120]
[419932502,1775519312748,-171.67919808,0.00034917,120]
[419932600,1775519437855,-1000.0,0.00013699,2]
[419932602,1775519437865,-615.0,0.00013699,2]
[419932604,1775519437874,-788.70485075,0.00019769,2]
[419932614,1775519437959,-572.35719235,0.00019769,2]
[419932700,1775519440582,-389.9284953,0.00019769,2]
[419932775,1775519441538,630.73281002,0.00031502,120]
[419932972,1775519443419,-13629.3830616,0.00019769,2]
[419932975,1775519443429,-153.00267674,0.000203,2]
[419932977,1775519443438,-153.00267672,0.000203,2]
[419932979,1775519443448,-153.00267672,0.000203,2]
[419932981,1775519443457,-336.586,0.00020358,2]
[419932983,1775519443466,-1149.57116261,0.000205,2]
[419932985,1775519443476,-2868.40167526,0.000205,2]
[419932987,1775519443486,-762.54984833,0.000205,2]
[419932989,1775519443495,-1451.87308625,0.00020572,2]
[419932991,1775519443504,-2856.57019744,0.00020572,2]
[419932993,1775519443516,-927.1608562,0.00020572,2]
[419932995,1775519443527,-941.79107501,0.00020572,2]
[419933228,1775519446122,-11343.67953378,0.00020572,2]
[419933230,1775519446131,-2667.76,0.00020663,3]
[419933232,1775519446140,-500.0,0.00020664,2]
[419933234,1775519446150,-688.3735149,0.00020664,2]
[419933236,1775519446159,-2150.738,0.00020664,2]
[419933238,1775519446168,-537.6845,0.00020664,2]
[419933240,1775519446178,-3617.74573218,0.00020664,2]
[419933242,1775519446188,-431.23256154,0.00020672,2]
[419933244,1775519446197,-500.0,0.00020672,2]
[419933246,1775519446207,-500.0,0.00020672,2]
[419933248,1775519446217,-621.26230606,0.00020672,2]
[419933250,1775519446227,-500.0,0.00020672,2]
[419933252,1775519446236,-500.0,0.00020672,2]
[419933254,1775519446246,-500.0,0.00020672,2]
[419933256,1775519446256,-500.0,0.00020672,2]
[419933258,1775519446265,-500.0,0.00020672,2]
[419933260,1775519446275,-428.81497745,0.00020672,2]
[419933262,1775519446284,-48912.65552106,0.00020673,2]
[419935188,1775519498487,1968.6,0.0003287,120]
[419935192,1775519741769,536.12288852,0.00031512,120]
[419935193,1775520031344,200.0,0.00032444,120]
[419935194,1775520031806,1460.66,0.000271,120]
[419935195,1775520041166,455.70445524,0.0003151,120]
[419935196,1775520080754,-1000.0,0.00013699,2]
[419935197,1775520091248,200.0,0.00029951,120]
[419935198,1775520109912,-251.66353897,0.00013699,2]
[419935199,1775520270746,200.0,0.00031695,120]
[419935200,1775520331411,200.0,0.00031334,120]
[419935201,1775520341036,387.34878696,0.00031476,120]
[419935202,1775520450995,200.0,0.00030695,120]
[419935204,1775520587146,186.396651,0.0001,2]
[419935205,1775520617096,1094.83877554,5e-05,2]
[419935216,1775520631864,-300.0,0.00012499,2]
[419935217,1775520631873,-300.0,0.00012499,2]
[419935218,1775520631882,-300.0,0.00012499,2]
[419935219,1775520631891,-300.0,0.00012499,2]
[419935220,1775520631901,-1109.0,0.00012499,2]
[419935221,1775520631910,-597.0,0.00012499,2]
[419935222,1775520631919,-2048.15330488,0.000125,2]
[419935223,1775520631930,-1259.76777739,0.000125,2]
[419935224,1775520631951,-2532.27554932,0.000125,2]
[419935225,1775520631962,-614.1086872,0.000125,2]
[419935263,1775520640792,-1408.17959229,0.00012375,2]
[419935265,1775520640805,-3591.82040771,0.00012375,2]
[419935267,1775520640814,-4962.9052707,0.000125,2]
[419935269,1775520640825,-1000.0,0.00013699,2]
[419935271,1775520640834,-300.0,0.00015204,2]
[419935273,1775520640844,-5050.263279,0.00015205,2]
[419935275,1775520640854,-500.0,0.00016999,2]
[419935277,1775520640864,-500.0,0.00016999,2]
[419935279,1775520640873,-500.0,0.00016999,2]
[419935281,1775520640882,-500.0,0.00016999,2]
[419935283,1775520640892,-500.0,0.00016999,2]
[419935285,1775520640902,-541.02618199,0.00016999,2]
[419935287,1775520640911,-334.88361424,0.00016999,2]
[419935289,1775520640920,-112611.37857154,0.00017,2]
[419935292,1775520640931,-168.740303,0.00017803,2]
[419935295,1775520640940,-17780.07416639,0.00017803,2]
[419935297,1775520640950,-6581.9,0.00018,2]
[419935299,1775520640959,-5015.84128209,0.00018,2]
[419935301,1775520640968,-732.980188,0.00019551,2]
[419935303,1775520640978,-917.27554932,0.000199,2]
[419935305,1775520640987,-9281.99298765,0.0002,2]
[419935307,1775520640996,-269.268,0.00020161,2]
[419935309,1775520641007,-500.0,0.000203,2]
[419935311,1775520641016,-1671.21287969,0.000205,2]
[419935313,1775520641025,-447.92505526,0.00020536,5]
[419935315,1775520641034,-500.0,0.00020559,2]
[419935317,1775520641044,-2150.738,0.00020559,2]
[419935318,1775520641055,-537.6845,0.00020559,2]
[419935320,1775520641063,-3878.57,0.00020563,3]
[419935322,1775520641073,-1939.28,0.00020563,3]
[419935324,1775520641082,-969.64,0.00020563,3]
[419935326,1775520641090,-484.82,0.00020563,3]
[419935328,1775520641100,-20438.88096339,0.00020571,2]
[419935330,1775520641109,-557.5788265,0.00020614,2]
[419935332,1775520641119,-1986.52,0.00020663,3]
[419935334,1775520641128,-578.20924308,0.00020669,2]
[419935336,1775520641137,-151.0,0.000207,3]
[419935338,1775520641146,-151.0,0.000207,4]
[419935340,1775520641156,-151.0,0.000207,3]
[419935342,1775520641165,-151.0,0.000207,3]
[419935344,1775520641174,-151.0,0.000207,4]
[419935345,1775520641184,-151.0,0.000207,4]
[419935347,1775520641194,-151.0,0.000207,4]
[419935349,1775520641203,-599.60298507,0.00020724,2]
[419935351,1775520641213,-621.78829552,0.00020779,2]
[419935353,1775520641222,-151.0,0.000208,4]
[419935355,1775520641232,-644.79446246,0.00020834,2]
[419935357,1775520641244,-668.65185757,0.00020889,2]
[419935359,1775520641254,-153.0,0.000209,2]
[419935361,1775520641263,-693.3919763,0.00020944,2]
[419935363,1775520641273,-600.0,0.00020982,2]
[419935365,1775520641283,-719.04747942,0.00020999,2]
[419935367,1775520641292,-14863.22923755,0.00021,5]
[419935369,1775520641303,-745.65223616,0.00021054,2]
[419935371,1775520641312,-947.0,0.00021085,2]
[419935373,1775520641322,-947.0,0.00021085,2]
[419935375,1775520641332,-947.0,0.00021085,2]
[419935377,1775520641341,-155.0,0.00021085,2]
[419935379,1775520641351,-166.0,0.00021085,2]
[419935381,1775520641361,-947.0,0.00021085,2]
[419935383,1775520641370,-155.0,0.00021085,2]
[419935385,1775520641379,-947.0,0.00021085,2]
[419935387,1775520641389,-160.01082423,0.00021085,2]
[419935389,1775520641399,-947.0,0.00021085,2]
[419935391,1775520641408,-166.0,0.00021085,2]
[419935392,1775520641417,-947.0,0.00021085,2]
[419935394,1775520641427,-166.0,0.00021085,2]
[419935395,1775520641437,-947.0,0.00021085,2]
[419935396,1775520641446,-200.0,0.00021085,2]
[419935397,1775520641456,-166.0,0.00021085,2]